bitfinex/quotes_ETHUSD_20220227
["timestamp","ask_amount","ask_price","bid_price","bid_amount"]
[1645973240215,0.90435,2767.2,2767.0,0.00397065]
[1645973240815,0.3,2767.2,2767.0,0.00397065]
[1645973241214,0.3,2767.2,2767.0,0.00794137]
[1645973241423,0.3,2767.2,2767.0,0.00397072]
[1645973241915,0.55,2767.3,2767.0,0.00397072]
[1645973241916,0.25,2767.3,2767.0,0.00397072]
[1645973242552,0.15,2767.3,2767.0,1.53643259]
[1645973242753,0.15,2767.3,2767.1,1.52849115]
[1645973243354,2.0,2767.7,2767.3,0.29999999]
[1645973243355,0.25,2767.6,2767.3,0.29999999]
[1645973244961,0.25,2767.6,2767.3,0.30399344]
[1645973245963,0.25,2767.6,2767.3,0.30798689]
[1645973246229,0.25,2767.6,2767.3,0.30399344]
[1645973246813,0.85908108,2767.6,2767.3,0.30399344]
[1645973247414,0.85908108,2767.6,2767.3,0.30398232]
[1645973248020,0.679,2767.6,2767.3,0.30398232]
[1645973250063,0.25,2767.6,2767.3,0.30398232]
[1645973250665,0.25,2767.6,2767.4,1.52828504]
[1645973251068,0.25,2767.6,2767.4,2.61276653]
[1645973251270,0.25,2767.6,2767.5,1.52828504]
[1645973252271,0.25,2767.6,2767.5,1.89038504]
[1645973252472,1.0,2768.8,2767.7,0.3621]
[1645973252671,7.0342,2769.4,2768.0,5.0]
[1645973252672,0.25,2769.4,2768.0,5.0]
[1645973252869,0.25,2769.4,2768.1,5.39038504]
[1645973253074,0.25,2769.4,2768.5,0.3621]
[1645973253269,7.36,2770.2,2768.7,0.3621]
[1645973253270,6.7733,2770.1,2768.7,0.3621]
[1645973253825,0.25,2770.1,2769.2,1.31814767]
[1645973254620,0.00531183,2769.5,2769.2,1.31814767]
[1645973255020,0.00531183,2769.5,2769.3,3.5]
[1645973255021,1.183e-05,2769.5,2769.3,3.5]
[1645973255620,2.0,2770.7,2769.4,0.3621]
[1645973255830,2.0,2770.7,2769.7,0.90282]
[1645973256022,0.25,2770.8,2769.8,3.8621]
[1645973256224,1.0,2771.5,2770.7,1.08145765]
[1645973257662,1.3,2771.5,2770.7,1.08145765]
[1645973257861,1.0,2771.5,2770.7,1.08145765]
[1645973258261,0.00545343,2771.2,2770.7,1.08145765]
[1645973259463,1.0,2771.5,2770.7,1.08145765]
[1645973259863,1.0,2771.5,2770.2,3.5]
[1645973259864,0.3621,2771.4,2770.2,3.5]
[1645973260063,0.3621,2771.4,2769.9,6.6054935]
[1645973260263,0.3621,2771.4,2769.9,6.9054935]
[1645973261065,0.6621,2771.4,2769.9,6.3054935]
[1645973261322,0.6621,2771.4,2769.4,12.50499]
[1645973261323,0.60908108,2771.3,2769.4,7.8938]
[1645973261518,2.3621,2771.2,2769.4,11.3938]
[1645973261723,0.429,2771.1,2769.4,11.3938]
[1645973261915,0.3621,2771.0,2769.4,3.5]
[1645973262116,0.429,2771.0,2770.0,1.24041605]
[1645973262317,1.0911,2771.0,2770.0,1.24041605]
[1645973263119,0.00535334,2770.6,2769.1,3.5]
[1645973263320,0.3621,2770.4,2768.9,7.4387]
[1645973263519,0.3621,2770.4,2768.5,5.5786]
[1645973263520,11.529,2770.3,2768.8,3.5]
[1645973263722,2.7911,2770.3,2768.6,3.5]
[1645973263921,3.7911,2770.3,2768.6,3.5]
[1645973264122,2.429,2770.3,2769.6,1.12390502]
[1645973264520,0.0053538,2769.7,2769.6,1.12390502]
[1645973264959,0.0053538,2769.7,2769.0,1.0]
[1645973265159,0.0053538,2769.7,2768.6,1.0]
[1645973265360,0.0053538,2769.7,2768.5,6.5786]
[1645973265560,0.0053538,2769.7,2768.5,5.5786]
[1645973265760,0.429,2769.9,2768.2,0.45176531]
[1645973265761,0.7911,2769.6,2768.2,0.45176531]
[1645973265964,0.7911,2769.6,2768.7,1.2743774]
[1645973265965,0.429,2769.6,2768.7,1.2743774]
[1645973266163,0.729,2769.6,2768.7,1.2743774]
[1645973266569,0.729,2769.6,2768.7,1.2243774]
[1645973266766,0.73418611,2769.6,2768.7,1.2243774]
[1645973267767,0.73418611,2769.6,2768.7,1.5864774]
[1645973267969,0.00480554,2769.6,2768.7,1.5864774]
[1645973269112,0.00961108,2769.6,2768.7,1.5864774]
[1645973269312,0.00480554,2769.6,2768.7,1.5864774]
[1645973269715,0.00480554,2769.6,2769.2,1.06807199]
[1645973269921,0.00480554,2769.6,2769.2,1.43017199]
[1645973270716,0.00964826,2769.6,2769.2,1.43017199]
[1645973270916,0.00484272,2769.6,2769.2,1.43017199]
[1645973271519,3.0,2770.7,2769.6,0.00968544]
[1645973271717,3.3,2770.7,2769.6,0.00968544]
[1645973272654,3.3,2770.7,2770.1,1.19288789]
[1645973273058,3.3,2770.7,2769.6,0.00968544]
[1645973274566,3.6621,2770.7,2769.6,0.00968544]
[1645973274963,1.0,2770.5,2769.6,0.00968544]
[1645973275364,0.0052146,2770.3,2769.6,0.00968544]
[1645973275563,0.0052146,2770.3,2769.8,1.33095843]
[1645973276247,0.0052146,2770.3,2769.6,0.00968544]
[1645973276444,0.00521464,2770.2,2769.6,0.00968544]
[1645973277346,0.00521464,2770.2,2770.1,1.10164588]
[1645973277744,0.3,2770.5,2770.1,1.10164588]
[1645973278149,3.3,2770.7,2769.6,0.00968544]
[1645973278452,15.029,2770.6,2769.6,0.00968544]
[1645973278650,11.1,2770.4,2769.6,0.00968544]
[1645973278851,11.1,2770.2,2769.6,0.00968544]
[1645973279150,0.429,2770.1,2769.6,0.00968544]
[1645973280068,0.00520901,2770.4,2769.6,0.00968544]
[1645973280262,2.429,2771.1,2769.6,0.00968544]
[1645973280263,0.00484263,2770.0,2769.6,0.00968544]
[1645973281467,0.429,2770.4,2769.6,0.00968544]
[1645973281665,0.429,2770.4,2769.7,1.02139525]
[1645973281666,0.729,2770.4,2769.7,1.02139525]
[1645973281866,0.429,2770.4,2769.7,1.02139525]
[1645973282473,0.429,2770.4,2769.6,0.00968544]
[1645973282669,0.729,2770.4,2769.6,0.00968544]
[1645973282867,3.5,2770.3,2769.6,0.00968544]
[1645973283069,0.429,2770.2,2769.6,0.00968544]
[1645973283269,1.429,2770.3,2769.6,0.00968544]
[1645973283468,0.429,2770.3,2769.6,0.00968544]
[1645973283729,0.00520569,2770.1,2769.6,0.00968544]
[1645973284936,1.50331,2770.4,2769.6,0.00968544]
[1645973285140,0.429,2770.1,2769.6,0.00968544]
[1645973285335,0.729,2770.1,2769.6,0.00968544]
[1645973285937,1.26541,2770.4,2769.6,0.00968544]
[1645973286137,0.90331,2770.4,2769.6,0.00968544]
[1645973286339,1.33231,2770.4,2769.6,0.00968544]
[1645973287465,1.63231,2770.4,2769.6,0.00968544]
[1645973288274,1.33231,2770.4,2769.6,0.00968544]
[1645973288475,4.3621,2770.5,2769.6,0.00968544]
[1645973288476,0.00542861,2770.1,2769.6,0.00968544]
[1645973289475,0.00542861,2770.1,2769.9,1.4095092]
[1645973289676,0.00542869,2770.0,2769.9,1.4095092]
[1645973290281,0.00542869,2770.0,2769.6,0.00968544]
[1645973291074,0.00542864,2770.1,2769.6,0.00968544]
[1645973291511,0.00542864,2770.1,2769.6,1.03747392]
[1645973291708,0.00542864,2770.1,2769.6,0.00968544]
[1645973292210,0.00542869,2770.0,2769.6,0.00968544]
[1645973293318,11.1,2770.2,2769.6,0.00968544]
[1645973293319,0.43376867,2769.9,2769.6,0.00968544]
[1645973294617,0.43376869,2769.9,2769.6,0.00968544]
[1645973295271,1.73376869,2769.9,2769.6,0.00968544]
[1645973295475,0.73376869,2769.9,2769.6,0.00968544]
[1645973296168,1.0,2769.8,2769.6,0.00817691]
[1645973296869,1.00486548,2769.8,2769.6,0.00817691]
[1645973297069,0.90486548,2769.8,2769.6,0.00817691]
[1645973298473,1.33386548,2769.8,2769.6,0.00817691]
[1645973300544,1.33385031,2769.8,2769.6,0.00817691]
[1645973300748,0.43385031,2769.8,2769.6,0.00817691]
[1645973300946,0.00485031,2769.8,2769.6,0.00817691]
[1645973302245,2.9,2770.3,2769.6,0.00817691]
[1645973302477,3.2,2770.3,2769.6,0.00817691]
[1645973303276,2.3,2770.3,2769.6,0.00817691]
[1645973303473,0.9,2770.2,2769.6,0.00817691]
[1645973303671,1.329,2770.2,2769.6,0.00817691]
[1645973304276,0.00534402,2770.0,2769.6,0.00817691]
[1645973305480,11.1,2770.1,2769.6,0.00817691]
[1645973305481,12.98,2769.8,2769.6,0.00817691]
[1645973305678,11.409,2769.7,2769.6,0.00817691]
[1645973305881,11.409,2769.7,2769.6,7.691e-05]
[1645973306079,17.73449255,2769.7,2769.6,7.691e-05]
[1645973306326,16.82578108,2769.7,2769.6,7.691e-05]
[1645973306529,3.84578108,2769.7,2769.6,7.691e-05]
[1645973306729,1.729,2769.7,2769.6,7.691e-05]
[1645973306927,1.90908108,2769.7,2769.6,7.691e-05]
[1645973307126,0.90908108,2769.7,2769.6,7.691e-05]
[1645973307729,12.00908108,2769.7,2769.6,7.691e-05]
[1645973307930,1.80908108,2769.7,2769.6,7.691e-05]
[1645973308129,2.80908108,2769.7,2769.6,7.691e-05]
[1645973308331,1.80908108,2769.7,2769.6,7.691e-05]
[1645973308535,13.90908108,2769.7,2769.6,7.691e-05]
[1645973310077,2.80908108,2769.7,2769.6,7.691e-05]
[1645973310278,1.80908108,2769.7,2769.6,7.691e-05]
[1645973310482,13.90908108,2769.7,2769.6,7.691e-05]
[1645973311283,2.80908108,2769.7,2769.6,7.691e-05]
[1645973311583,0.60908108,2769.7,2769.6,7.691e-05]
[1645973312181,12.60908108,2769.7,2769.6,7.691e-05]
[1645973312383,7.71134217,2769.6,2768.7,0.00479799]
[1645973312583,11.1,2769.2,2768.7,0.00479799]
[1645973312784,11.1,2769.2,2768.7,0.0159933]
[1645973312785,11.1,2768.8,2768.7,0.0159933]
[1645973313184,2.2,2768.8,2768.7,0.0159933]
[1645973313383,2.629,2768.8,2768.7,0.0159933]
[1645973313587,2.53297,2768.8,2768.7,0.0159933]
[1645973313824,3.53297,2768.8,2768.7,0.0159933]
[1645973314027,1.63297,2768.8,2768.6,0.00399856]
[1645973314225,2.17005,2769.3,2768.6,0.00399856]
[1645973314226,0.429,2769.4,2768.6,0.00399856]
[1645973315129,0.429,2769.4,2769.0,1.33824007]
[1645973315426,0.90366,2769.3,2768.6,0.00398461]
[1645973315634,1.33266,2769.3,2768.6,0.00398461]
[1645973316028,1.33266,2769.3,2768.6,0.00284861]
[1645973316232,1.63266,2769.3,2768.6,0.00284861]
[1645973316430,1.63266,2769.3,2768.6,0.00398461]
[1645973316731,11.1,2769.0,2768.6,0.00398461]
[1645973316928,4.55824495,2769.2,2768.6,0.00398461]
[1645973316929,11.1,2768.8,2768.6,0.00398461]
[1645973317127,0.90391,2768.7,2768.6,0.00398461]
[1645973317329,1.33291,2768.7,2768.6,0.00398461]
[1645973317565,1.63291,2768.7,2768.6,0.00398461]
[1645973317765,1.63291,2768.7,2767.9,1.23014667]
[1645973318165,1.63291,2768.7,2768.0,1.52790287]
[1645973318368,1.63291,2768.7,2767.9,1.23014667]
[1645973318774,1.63291,2768.7,2768.2,0.00394408]
[1645973319575,11.1,2768.6,2768.2,0.00394408]
[1645973319771,0.429,2768.5,2768.2,0.00394408]
[1645973320072,0.429,2768.5,2768.3,0.00394387]
[1645973320270,0.729,2768.5,2768.3,0.00394387]
[1645973320472,1.629,2768.5,2768.3,0.00394387]
[1645973321072,1.629,2768.5,2768.3,0.00788781]
[1645973321322,1.629,2768.5,2768.3,0.00394394]
[1645973321517,0.729,2768.5,2768.3,0.00394394]
[1645973321820,0.9,2768.4,2768.3,0.00394394]
[1645973322016,1.329,2768.4,2768.3,0.00394394]
[1645973322420,2.23299,2768.4,2768.3,0.00335607]
[1645973323320,13.33299,2768.4,2768.3,0.00335607]
[1645973323721,14.33299,2768.4,2768.2,0.00335613]
[1645973324123,11.1,2768.3,2768.2,0.00335613]
[1645973324324,13.63738,2768.3,2768.2,5.613e-05]
[1645973324525,20.13738,2768.3,2768.2,5.613e-05]
[1645973324725,16.81746108,2768.3,2768.2,5.613e-05]
[1645973324966,16.81746108,2768.3,2767.8,7.23942655]
[1645973324967,11.1,2768.1,2767.8,7.226]
[1645973325268,1.8042,2767.9,2767.8,7.226]
[1645973325467,2.5332,2767.9,2767.8,7.226]
[1645973325866,3.5332,2767.9,2767.8,7.226]
[1645973327876,2.6332,2767.9,2767.8,7.226]
[1645973329121,1.6332,2767.9,2767.8,7.226]
[1645973329418,2.6332,2767.9,2767.8,7.226]
[1645973329617,1.6332,2767.9,2767.8,7.226]
[1645973329818,2.6332,2767.9,2767.8,7.226]
[1645973330119,12.7332,2767.9,2767.8,7.226]
[1645973330318,13.7332,2767.9,2767.8,7.226]
[1645973332563,13.7332,2767.9,2767.8,5.27282071]
[1645973333567,15.7332,2767.9,2767.8,5.27282071]
[1645973333969,15.7332,2767.9,2767.7,0.00472507]
[1645973333970,7.80856,2767.8,2767.7,2.507e-05]
[1645973334171,20.80856,2767.8,2767.7,2.507e-05]
[1645973334379,11.1,2767.6,2767.3,2.877e-05]
[1645973334572,16.09551169,2767.6,2767.3,2.877e-05]
[1645973334870,11.1,2767.2,2766.1,4.7192]
[1645973335073,12.79567,2767.1,2766.1,1.2192]
[1645973335269,12.79567,2767.1,2765.8,3.5]
[1645973335270,11.529,2767.0,2765.8,3.5]
[1645973335471,0.9046,2766.8,2765.9,2.86723521]
[1645973335671,0.429,2766.7,2765.7,19.3252]
[1645973335870,0.9046,2766.5,2765.7,8.5604]
[1645973336074,0.429,2766.4,2765.7,7.36]
[1645973336339,0.729,2766.4,2765.7,7.36]
[1645973336943,0.729,2766.4,2765.8,1.07233122]
[1645973337738,0.729,2766.4,2765.7,7.36]
[1645973337942,0.729,2766.4,2766.0,0.0045952]
[1645973338342,2.0,2766.1,2766.0,0.0045952]
[1645973338541,13.529,2766.1,2766.0,0.0045952]
[1645973338741,13.829,2766.1,2766.0,0.0045952]
[1645973338941,14.829,2766.1,2766.0,0.0045952]
[1645973339140,3.729,2766.1,2766.0,0.0045952]
[1645973339340,3.729,2766.1,2765.1,1.11138642]
[1645973339646,3.729,2766.1,2765.2,1.52921105]
[1645973339647,2.429,2766.1,2765.2,1.52921105]
[1645973339842,2.0,2766.6,2766.1,1.63100253]
[1645973340069,2.429,2766.6,2766.1,1.63100253]
[1645973340472,0.90442,2767.1,2766.1,1.63100253]
[1645973340473,3.2629299,2768.0,2766.4,7.0]
[1645973340672,3.15159383,2768.7,2767.2,0.01221866]
[1645973340673,0.25,2768.2,2767.2,0.01221866]
[1645973340875,8.781,2768.6,2767.2,0.01221866]
[1645973341273,8.781,2768.6,2768.0,1.16058554]
[1645973341473,8.781,2768.6,2766.8,4.8621]
[1645973341474,2.7911,2768.6,2766.9,1.197]
[1645973341675,2.3621,2768.3,2766.9,1.197]
[1645973341873,0.3621,2768.1,2766.9,1.197]
[1645973342075,2.0,2767.9,2766.9,4.697]
[1645973342278,2.0,2767.9,2766.9,3.5]
[1645973342474,2.0,2767.9,2767.4,1.2271748]
[1645973343475,2.3,2767.9,2767.4,1.2271748]
[1645973345332,2.0,2767.9,2767.4,1.2271748]
[1645973345533,0.0054021,2767.8,2767.4,1.2271748]
[1645973346737,0.00540212,2767.7,2767.4,1.2271748]
[1645973347346,0.00540212,2767.7,2767.5,3.8621]
[1645973347597,0.00540212,2767.7,2767.6,3.8621]
[1645973348196,0.00514042,2767.7,2767.6,3.8621]
[1645973349198,0.00402587,2767.8,2767.4,5.0892748]
[1645973349401,0.00402587,2767.8,2767.0,2.2277]
[1645973349606,0.00402587,2767.8,2767.0,1.2277]
[1645973350401,0.00365675,2767.5,2767.0,1.5898]
[1645973350798,0.00365675,2767.5,2767.4,1.36861069]
[1645973351222,0.00365675,2767.5,2767.0,1.2277]
[1645973351622,2.3621,2768.1,2767.0,1.2277]
[1645973351623,0.00365675,2767.6,2767.0,1.2277]
[1645973352225,0.00365675,2767.6,2767.4,1.39939503]
[1645973352627,0.00365675,2767.6,2767.4,1.76149503]
[1645973352835,0.00503797,2767.5,2767.4,1.76149503]
[1645973353031,0.00503797,2767.5,2767.4,1.39939503]
[1645973353331,0.00503797,2767.5,2767.4,5.26149503]
[1645973353534,3.797e-05,2767.5,2767.4,4.8621]
[1645973353734,3.797e-05,2767.5,2767.4,6.39024029]
[1645973354133,3.797e-05,2767.5,2767.4,13.61714029]
[1645973354331,4.13e-05,2767.6,2767.4,14.52071029]
[1645973354531,4.13e-05,2767.6,2767.5,5.02814029]
[1645973354734,4.13e-05,2767.6,2767.5,18.91694029]
[1645973355177,4.13e-05,2767.6,2767.5,26.83294029]
[1645973355382,0.25,2768.6,2767.5,26.83294029]
[1645973355576,0.25,2768.6,2767.7,0.3621]
[1645973355778,0.25,2768.6,2767.8,6.29376269]
[1645973355977,2.25,2769.3,2767.9,1.52814029]
[1645973356180,2.25,2769.3,2768.0,3.8621]
[1645973356478,2.25,2769.3,2767.7,2.9003]
[1645973356479,14.6,2769.2,2767.7,2.9003]
[1645973356681,14.6,2769.2,2767.5,15.1427]
[1645973356682,11.4621,2768.9,2767.5,7.2267]
[1645973356881,11.1,2768.4,2767.5,7.2267]
[1645973357085,0.429,2768.3,2767.5,7.2267]
[1645973357888,0.90813002,2768.1,2767.5,7.2267]
[1645973358183,0.429,2768.0,2767.5,7.2267]
[1645973358831,0.429,2768.0,2767.5,8.30330764]
[1645973359032,0.00540704,2767.9,2767.5,8.30330764]
[1645973359235,0.00540704,2767.9,2767.5,7.2267]
[1645973360132,0.00540707,2767.8,2767.5,7.2267]
[1645973361335,0.01081416,2767.8,2767.5,7.2267]
[1645973361535,0.00540709,2767.8,2767.5,7.2267]
[1645973362577,0.00503177,2767.8,2767.5,7.2267]
[1645973363778,0.00477054,2767.8,2767.5,7.2267]
[1645973364585,1.29205997,2768.7,2767.8,0.00954108]
[1645973364586,0.25,2768.7,2767.8,0.00954108]
[1645973364783,2.0,2769.0,2767.9,0.1444]
[1645973364987,2.0,2769.0,2768.0,1.527907]
[1645973365184,2.0,2769.0,2767.9,0.5065]
[1645973365983,2.0,2769.0,2767.9,0.1444]
[1645973366215,0.00368014,2768.6,2767.9,0.1444]
[1645973367419,0.00484677,2768.4,2767.9,0.1444]
[1645973367618,0.00484677,2768.4,2768.3,1.24731934]
[1645973368022,0.00484677,2768.4,2767.9,0.1444]
[1645973368223,0.00484677,2768.4,2767.8,0.00954108]
[1645973368429,0.429,2768.3,2767.8,0.00954108]
[1645973368622,0.729,2768.3,2767.8,0.00954108]
[1645973369022,0.429,2768.3,2767.8,0.00954108]
[1645973369826,0.00483868,2768.2,2767.8,0.00954108]
[1645973370982,0.00482967,2768.1,2767.8,0.00954108]
[1645973372286,0.00482969,2768.1,2767.8,0.00954108]
[1645973372488,0.60908108,2768.0,2767.8,0.00954108]
[1645973372687,11.70908108,2768.0,2767.8,0.00954108]
[1645973372886,0.18008108,2767.9,2767.8,0.00954108]
[1645973373088,11.70908108,2767.9,2767.8,0.00954108]
[1645973373490,12.70908108,2767.9,2767.8,0.00954108]
[1645973373729,13.70908108,2767.9,2767.8,0.00954108]
[1645973375441,17.20908108,2767.9,2767.8,0.00954108]
[1645973375641,19.20908108,2767.9,2767.8,0.00954108]
[1645973375838,0.0095,2767.8,2767.5,5.59996664]
[1645973376046,16.72945931,2767.7,2767.5,0.39915758]
[1645973376238,16.72945931,2767.7,2766.2,4.0282]
[1645973376239,11.4621,2767.4,2766.2,4.0282]
[1645973376437,6.8,2767.6,2766.0,7.8875]
[1645973376438,11.4621,2767.2,2766.0,7.8875]
[1645973376637,12.1,2767.0,2766.0,0.1444]
[1645973376839,12.1,2767.0,2765.5,0.1444]
[1645973376840,11.1,2766.8,2765.5,0.1444]
[1645973377038,0.429,2766.7,2765.5,0.1444]
[1645973377338,0.429,2766.6,2765.5,0.1444]
[1645973378173,0.429,2766.6,2766.2,0.00463554]
[1645973379473,0.429,2766.6,2766.3,0.00463546]
[1645973380276,0.429,2767.0,2766.3,0.00463546]
[1645973380478,1.0,2767.3,2766.4,0.1444]
[1645973380677,0.00503931,2767.9,2766.5,0.3621]
[1645973380877,0.00503931,2767.9,2766.7,0.3621]
[1645973381079,0.00503931,2767.9,2766.8,4.0065]
[1645973381328,0.00503931,2767.9,2767.4,1.03373906]
[1645973381530,0.36713931,2767.9,2766.8,0.1444]
[1645973381733,11.529,2767.8,2766.8,0.1444]
[1645973381926,0.429,2767.8,2767.2,0.00463386]
[1645973382126,2.53744,2767.8,2767.2,0.00463386]
[1645973382328,0.90421,2767.6,2767.2,0.00463386]
[1645973382525,0.429,2767.5,2767.2,0.00463386]
[1645973382727,2.429,2767.5,2767.2,0.00463386]
[1645973383131,2.429,2767.5,2767.3,0.00372629]
[1645973385388,2.429,2767.5,2767.3,0.00745258]
[1645973385588,2.429,2767.5,2767.3,0.00372629]
[1645973386590,0.90887044,2767.9,2767.3,0.00372629]
[1645973386591,0.00477044,2767.9,2767.3,0.00372629]
[1645973386790,0.00482272,2767.9,2767.3,0.00390061]
[1645973386990,0.30482272,2767.9,2767.3,0.00390061]
[1645973387191,0.00482272,2767.9,2767.3,0.00390061]
[1645973387990,0.00484222,2767.9,2767.4,0.0039004]
[1645973389231,0.00484222,2767.9,2767.4,0.0078008]
[1645973389232,0.0096845,2767.9,2767.4,0.0078008]
[1645973389431,0.00484228,2767.9,2767.4,0.0039004]
[1645973390231,0.0048315,2767.9,2767.4,0.00386444]
[1645973391432,0.00482746,2767.9,2767.4,0.00386444]
[1645973393878,0.00482919,2767.9,2767.4,0.00387019]
[1645973395079,0.00482996,2767.9,2767.4,0.00387019]
[1645973396523,0.429,2767.8,2767.4,0.00387019]
[1645973396728,2.0,2767.5,2767.4,0.00387019]
[1645973396924,2.429,2767.5,2767.4,0.00387019]
[1645973397121,13.529,2767.5,2767.4,0.00387019]
[1645973397321,2.729,2767.5,2767.4,0.00387019]
[1645973397721,2.729,2767.5,2767.3,0.00388956]
[1645973398123,2.729,2767.5,2767.3,0.0026767]
[1645973398827,2.729,2767.5,2767.3,0.00388963]
[1645973398828,3.63329,2767.5,2767.3,0.00388963]
[1645973399024,2.729,2767.5,2767.3,0.00388963]
[1645973400069,2.729,2767.5,2766.7,1.15064703]
[1645973400273,2.429,2767.5,2766.8,1.52859793]
[1645973400472,1.0,2768.0,2766.9,3.8621]
[1645973400673,2.0,2767.9,2767.0,1.89069793]
[1645973400873,2.0,2767.9,2767.1,5.02859793]
[1645973401074,2.3,2767.9,2767.2,1.52836691]
[1645973401274,2.3,2767.9,2767.3,1.08934598]
[1645973402375,0.00517215,2767.8,2767.4,0.00386213]
[1645973402575,0.25,2767.7,2767.4,0.00386213]
[1645973404430,0.25,2767.7,2766.8,0.37755158]
[1645973404634,0.25,2767.7,2767.4,0.00386031]
[1645973406032,0.25,2767.7,2766.5,3.5]
[1645973406230,0.25,2767.7,2766.6,1.52856022]
[1645973407233,0.25,2767.7,2766.7,3.5]
[1645973407234,0.25364985,2767.7,2766.7,3.5]
[1645973407467,0.25364985,2767.7,2766.8,1.52856022]
[1645973407972,0.25364985,2767.7,2767.2,1.1130058]
[1645973408171,0.25364985,2767.7,2766.7,3.5]
[1645973408373,0.25364985,2767.7,2767.1,0.00462134]
[1645973408374,0.25503608,2767.7,2767.1,0.00462134]
[1645973408573,0.25503608,2767.7,2767.2,1.89062231]
[1645973408774,0.25503608,2767.7,2767.1,0.00462134]
[1645973408775,0.25503608,2767.7,2767.3,1.52852231]
[1645973408976,0.25503608,2767.7,2767.1,0.00462134]
[1645973409177,0.25503608,2767.7,2767.2,1.52836653]
[1645973409377,0.25503608,2767.7,2767.5,1.23678446]
[1645973409575,0.25503608,2767.7,2767.1,0.00462134]
[1645973409782,0.25503641,2767.7,2767.3,0.00462109]
[1645973410777,0.25504732,2767.7,2767.3,0.00462109]
[1645973411534,1.80815,2768.3,2767.3,0.00462109]
[1645973411535,0.25,2768.5,2767.4,1.52836303]
[1645973411731,0.25,2768.5,2767.5,3.8621]
[1645973411930,5.961,2768.9,2767.5,3.8621]
[1645973411931,2.0,2768.8,2767.6,1.52836303]
[1645973412136,2.0,2768.8,2767.7,3.8621]
[1645973412336,0.31828105,2769.2,2768.5,1.31481025]
[1645973412534,0.13819997,2769.2,2768.5,1.31481025]
[1645973413337,0.31828105,2769.2,2768.5,1.31481025]
[1645973413841,0.61828105,2769.2,2768.5,1.31481025]
[1645973414643,0.00479097,2769.0,2768.6,3.5]
[1645973415098,0.00479097,2769.0,2768.7,0.3621]
[1645973415300,0.00479097,2769.0,2768.8,3.5]
[1645973415499,0.00479097,2769.0,2768.0,1.16548198]
[1645973415701,0.00479097,2769.0,2768.1,1.52797966]
[1645973415905,0.00479099,2768.9,2768.0,1.1527]
[1645973416498,0.00479099,2768.9,2768.5,1.43566097]
[1645973417102,0.00489409,2768.6,2768.5,1.43566097]
[1645973418302,0.00488863,2768.7,2768.5,1.43566097]
[1645973418502,0.00488863,2768.7,2768.5,1.79776097]
[1645973419533,0.00488861,2768.7,2768.5,1.79776097]
[1645973420735,0.00480468,2768.7,2768.5,1.79776097]
[1645973421733,0.0096063,2768.7,2768.5,1.79776097]
[1645973421932,0.00480162,2768.7,2768.5,1.79776097]
[1645973422134,0.00480162,2768.7,2768.5,1.43566097]
[1645973422579,0.00480162,2768.7,2768.1,0.1444]
[1645973422782,0.00480162,2768.7,2768.0,1.1527]
[1645973422980,0.00960324,2768.7,2768.0,1.1527]
[1645973423180,0.00480162,2768.7,2768.0,1.1527]
[1645973423378,0.71380162,2768.8,2768.0,1.1527]
[1645973423580,0.71380162,2768.8,2768.1,1.37756851]
[1645973425084,3.429,2769.2,2768.1,1.37756851]
[1645973425288,2.729,2769.2,2768.1,4.87756851]
[1645973425485,0.00367891,2768.8,2768.1,1.37756851]
[1645973425688,0.429,2768.7,2768.1,1.37756851]
[1645973426085,0.729,2768.7,2768.1,1.37756851]
[1645973426522,0.729,2768.7,2767.9,2.8817]
[1645973427124,0.729,2768.7,2767.8,1.2138]
[1645973427324,0.729,2768.7,2767.3,0.3621]
[1645973427526,0.729,2768.7,2767.6,3.2225]
[1645973427527,1.0911,2768.7,2767.6,3.2225]
[1645973427726,1.0911,2768.7,2767.3,10.4659]
[1645973427727,1.26601,2768.5,2767.3,10.4659]
[1645973427931,1.26601,2768.5,2767.7,0.00465324]
[1645973427932,0.429,2768.4,2767.7,0.00465324]
[1645973428128,11.02,2768.3,2767.7,0.00465324]
[1645973428327,0.429,2768.2,2767.7,0.00465324]
[1645973428927,2.0,2768.1,2767.7,0.00465324]
[1645973429128,0.429,2768.0,2767.7,0.00465324]
[1645973429529,0.729,2768.0,2767.7,0.00465324]
[1645973430176,1.729,2768.0,2767.7,0.00465324]
[1645973430678,1.0,2767.9,2767.7,0.00465324]
[1645973430874,0.429,2767.8,2767.7,0.00465324]
[1645973431075,12.749,2767.8,2767.7,0.00465324]
[1645973431277,13.749,2767.8,2767.7,0.00465324]
[1645973431477,13.749,2767.8,2767.7,0.00930657]
[1645973431676,13.749,2767.8,2767.7,0.00465333]
[1645973432778,13.749,2767.8,2767.6,0.00377065]
[1645973433377,2.729,2767.8,2767.6,0.00377065]
[1645973433577,2.529,2767.8,2767.6,0.00377065]
[1645973433828,2.429,2767.8,2767.6,0.00754137]
[1645973434038,2.429,2767.8,2767.6,7.072e-05]
[1645973434039,5.17559277,2767.7,2767.6,7.072e-05]
[1645973434231,27.94537424,2767.7,2767.1,0.01508512]
[1645973434430,11.02,2767.2,2767.1,8.512e-05]
[1645973434632,11.3821,2767.0,2765.9,7.36]
[1645973434829,12.71569,2766.9,2765.9,7.36]
[1645973435030,12.71569,2766.9,2765.4,14.2767]
[1645973435031,0.3621,2766.8,2765.4,14.2767]
[1645973435229,0.7911,2766.7,2765.4,14.2767]
[1645973435431,0.7911,2766.7,2765.5,1.52911637]
[1645973435633,1.0911,2766.7,2765.7,1.34240622]
[1645973435836,1.0911,2766.7,2765.4,14.2767]
[1645973435837,12.1111,2766.7,2765.4,14.2767]
[1645973436036,0.25,2766.2,2765.4,14.2767]
[1645973436232,0.429,2766.1,2765.4,11.1973]
[1645973436432,11.449,2766.1,2766.0,0.00460903]
[1645973436636,11.749,2766.1,2766.0,0.00460903]
[1645973436835,14.749,2766.1,2766.0,0.00460903]
[1645973437032,14.749,2766.1,2765.3,7.36]
[1645973437234,11.3821,2766.0,2764.8,7.36]
[1645973437488,4.029,2766.1,2763.9,1.1971402]